bitfinex-derivatives/quotes_SOLF0:USTF0_20250310
["timestamp","ask_amount","ask_price","bid_price","bid_amount"]
[1741627329805,66.03273841,118.97,118.89,91.7688187]
[1741627330109,66.03273841,118.95,118.89,91.7688187]
[1741627330415,8.4136,118.92,118.88,8.1552]
[1741627330609,66.03273841,118.95,118.88,4.0148]
[1741627330814,66.03273841,118.97,118.87,4.1877]
[1741627330815,66.03273841,118.93,118.87,4.1877]
[1741627331015,66.09386578,118.93,118.9,0.0625932]
[1741627331811,0.06112737,118.93,118.9,0.0625932]
[1741627333714,8.4137,118.91,118.9,0.0625932]
[1741627333907,0.06112737,118.93,118.85,4.1404]
[1741627333908,66.03273841,118.92,118.85,4.1404]
[1741627334719,8.4164,118.88,118.85,4.1404]
[1741627334920,66.03273841,118.94,118.85,4.1404]
[1741627335115,0.05716464,118.88,118.85,70.2303969]
[1741627335316,108.05407902,118.99,118.87,66.03273841]
[1741627335514,352.0946,119.01,118.87,66.03273841]
[1741627335515,66.03273841,118.98,118.87,66.03273841]
[1741627335714,66.03273841,119.0,118.87,66.03273841]
[1741627336221,66.03273841,119.02,118.89,66.03273841]
[1741627336515,0.00063933,118.95,118.93,66.03273841]
[1741627336719,277.62,119.07,118.94,4.0258]
[1741627336915,8.4065,119.02,118.96,66.03273841]
[1741627337220,277.62,119.07,118.96,66.03273841]
[1741627337521,8.4068,119.01,118.96,66.03273841]
[1741627337718,66.03273841,119.04,118.95,57.64]
[1741627337915,0.06280668,119.0,118.97,0.06414897]
[1741627339018,8.4045,119.04,118.98,8.4082]
[1741627339220,277.62,119.07,118.97,0.06414897]
[1741627339418,277.62,119.07,118.96,66.03273841]
[1741627339618,66.03273841,119.06,118.95,57.64]
[1741627339820,277.62,119.07,118.96,66.03273841]
[1741627340219,0.0558825,119.03,119.0,0.06022879]
[1741627340618,0.0558825,119.03,118.99,8.408]
[1741627340818,0.0558825,119.03,119.0,0.05720981]
[1741627341218,0.0558825,119.03,119.0,57.65720981]
[1741627341416,0.0558825,119.03,119.0,0.05720981]
[1741627341722,66.08862091,119.03,118.94,4.0258]
[1741627342218,66.03273841,119.01,118.94,12.4368]
[1741627342520,66.03273841,119.01,118.94,4.0258]
[1741627342714,8.4106,118.96,118.9,66.0141]
[1741627342913,66.03273841,118.99,118.9,57.6]
[1741627343115,66.03273841,118.97,118.88,8.3041]
[1741627343317,66.03273841,118.99,118.88,8.3041]
[1741627343719,66.03273841,118.95,118.88,8.3041]
[1741627344118,66.03273841,118.99,118.88,8.3041]
[1741627344420,0.00665683,118.93,118.91,66.03273841]
[1741627344622,66.03273841,119.0,118.91,57.58]
[1741627344821,8.4113,118.95,118.9,8.4142]
[1741627345016,8.4113,118.95,118.88,65.8841]
[1741627345217,66.03273841,119.0,118.88,65.8841]
[1741627345522,57.58,119.02,118.88,65.8841]
[1741627345723,0.05443832,118.95,118.93,0.05929566]
[1741627346218,66.03273841,119.03,118.93,123.6709108]
[1741627346424,8.408,119.0,118.95,8.4108]
[1741627346624,66.03273841,119.03,118.93,123.61273841]
[1741627346923,8.4057,119.03,118.98,8.4083]
[1741627347121,123.61273841,119.05,118.95,66.03273841]
[1741627347318,123.61273841,119.05,118.96,4.0953]
[1741627347523,8.4073,119.0,118.99,0.05831914]
[1741627348123,8.46468844,119.01,118.99,0.05831914]
[1741627348320,0.05748844,119.01,118.99,0.05831914]
[1741627350221,8.4073,119.0,118.99,0.05831914]
[1741627350727,0.05748844,119.01,118.99,0.05831914]
[1741627352732,67.99763841,119.11,118.99,2.57831914]
[1741627352922,66.03273841,119.11,119.0,66.03273841]
[1741627353127,72.32403841,119.15,119.04,66.03273841]
[1741627353324,4.3257,119.15,119.05,57.56]
[1741627353523,8.4,119.11,119.06,66.03273841]
[1741627353833,4.3257,119.19,119.08,66.03273841]
[1741627354026,0.06003208,119.1,119.07,0.05460211]
[1741627354223,66.03273841,119.2,119.06,281.7219]
[1741627354425,66.03273841,119.2,119.1,66.03273841]
[1741627354632,66.03273841,119.18,119.08,66.03273841]
[1741627354829,66.03273841,119.2,119.08,66.03273841]
[1741627355031,8.3974,119.15,119.1,8.4]
[1741627355231,66.03273841,119.2,119.1,57.54]
[1741627355428,0.05802042,119.14,119.11,0.0623918]
[1741627355629,0.05802042,119.14,119.1,57.54]
[1741627355824,66.03273841,119.19,119.11,0.05321154]
[1741627356033,0.05368655,119.13,119.11,0.05321154]
[1741627356332,277.4,119.21,119.11,0.05569448]
[1741627356726,127.87843841,119.23,119.12,66.03273841]
[1741627356932,66.03273841,119.25,119.14,66.03273841]
[1741627357136,8.391,119.24,119.19,8.3935]
[1741627357337,0.03587555,119.2,119.19,8.3935]
[1741627357525,66.03273841,119.29,119.18,66.03273841]
[1741627357729,400.83273841,119.31,119.22,8.3918]
[1741627357933,343.31273841,119.31,119.21,57.52]
[1741627358428,66.03273841,119.29,119.21,57.52]
[1741627358936,66.03273841,119.29,119.24,0.0646183]
[1741627359237,4.3117,119.32,119.24,0.0646183]
[1741627359535,70.34443841,119.32,119.22,4.2498]
[1741627359931,70.34443841,119.32,119.27,0.05846798]
[1741627360439,8.387,119.29,119.27,0.05846798]
[1741627360730,66.03273841,119.32,119.27,0.05846798]
[1741627360937,66.03273841,119.28,119.18,4.0071]
[1741627361134,66.03273841,119.28,119.17,123.51273841]
[1741627361329,8.3867,119.3,119.24,8.3899]
[1741627361536,66.03273841,119.32,119.22,57.48]
[1741627361839,0.152,119.33,119.2,91.7688187]
[1741627361840,66.03273841,119.3,119.2,91.7688187]
[1741627362031,66.03273841,119.3,119.2,157.6219187]
[1741627362337,66.08679755,119.28,119.26,0.05914932]
[1741627362538,66.08679755,119.28,119.2,149.2288187]
[1741627362737,66.03273841,119.28,119.2,149.2288187]
[1741627362933,8.3925,119.21,119.2,91.7688187]
[1741627363542,123.49273841,119.24,119.2,91.7688187]
[1741627363731,0.05862597,119.22,119.2,91.7688187]
[1741627363932,0.05862597,119.22,119.2,8.3932]
[1741627364237,0.05862597,119.22,119.19,0.05377522]
[1741627365842,8.3932,119.2,119.19,0.05377522]
[1741627366241,8.33059471,119.2,119.19,0.05377522]
[1741627366837,8.3927,119.21,119.19,0.05377522]
[1741627367037,0.05862597,119.22,119.19,0.05377522]
[1741627367434,0.05862597,119.22,119.19,57.49377522]
[1741627367639,129.74303841,119.33,119.24,8.39]
[1741627367839,8.3873,119.29,119.24,8.39]
[1741627368331,66.03273841,119.33,119.25,57.42]
[1741627368537,66.03273841,119.35,119.25,57.42]
[1741627368745,0.05323695,119.3,119.28,0.05909214]
[1741627369142,0.0545297,119.3,119.28,0.05909214]
[1741627369346,8.3869,119.29,119.28,0.05909214]
[1741627369938,0.0545297,119.3,119.2,542.65523841]
[1741627370142,66.03273841,119.29,119.2,8.6625]
[1741627370541,8.3909,119.24,119.2,8.6625]
[1741627370746,342.99273841,119.31,119.2,74.69523841]
[1741627370945,108.14367902,119.34,119.22,66.03273841]
[1741627371143,0.06350818,119.27,119.24,0.05341365]
[1741627371545,0.0896,119.34,119.23,57.4]
[1741627371740,0.0896,119.34,119.24,0.05757575]
[1741627371741,8.3901,119.25,119.24,0.05757575]
[1741627371946,0.05390891,119.27,119.17,149.1688187]
[1741627372143,57.4,119.28,119.17,149.1688187]
[1741627372549,108.05407902,119.33,119.24,8.3902]
[1741627372746,66.03273841,119.32,119.22,57.4]
[1741627372937,66.03273841,119.3,119.19,123.43273841]
[1741627373143,66.03273841,119.28,119.27,9.697e-05]
[1741627373339,68.55273841,119.28,119.18,4.0166]
[1741627373545,66.03273841,119.26,119.18,61.4166]
[1741627374238,8.3918,119.22,119.21,0.05767858]
[1741627374443,0.06156275,119.23,119.16,24.21963626]
[1741627375050,0.06156275,119.23,119.17,66.03273841]
[1741627375448,123.41273841,119.32,119.21,66.03273841]
[1741627375650,123.41273841,119.32,119.21,123.41273841]
[1741627375950,8.3873,119.29,119.24,8.3901]
[1741627376250,66.03273841,119.28,119.16,81.59963626]
[1741627376452,66.03273841,119.3,119.21,8.3921]
[1741627376751,0.0581644,119.23,119.21,0.06430042]
[1741627376951,8.3907,119.24,119.19,8.3938]
[1741627377151,0.05625301,119.23,119.21,0.05763833]
[1741627377450,57.38,119.27,119.21,0.05763833]
[1741627377647,0.05564219,119.23,119.17,70.32373841]
[1741627377846,0.05564219,119.23,119.2,66.03273841]
[1741627378147,123.41273841,119.32,119.21,57.38]
[1741627378449,8.3885,119.27,119.22,66.03273841]
[1741627378850,123.41273841,119.32,119.22,66.03273841]
[1741627379050,0.05673046,119.28,119.26,0.06139904]
[1741627379950,8.3883,119.27,119.26,0.06139904]
[1741627380249,0.05673046,119.28,119.26,0.06139904]
[1741627380652,0.0936,119.35,119.26,123.45413745]
[1741627380857,66.03273841,119.34,119.23,57.36]
[1741627381647,66.03273841,119.34,119.26,8.3885]
[1741627381843,0.0936,119.35,119.27,0.05576532]
[1741627381844,0.05674527,119.3,119.27,0.05576532]
[1741627382244,0.05674527,119.3,119.26,66.03273841]
[1741627382451,0.05674527,119.3,119.27,0.0548872]
[1741627383749,8.3838,119.34,119.3,8.3861]
[1741627383947,66.12773841,119.38,119.28,123.39273841]
[1741627384149,66.12773841,119.38,119.28,57.36]
[1741627384650,66.12773841,119.38,119.27,57.36]
[1741627384853,0.05352113,119.34,119.32,0.05669795]
[1741627385156,0.095,119.41,119.32,66.08943636]
[1741627385348,0.06126762,119.34,119.32,66.08943636]
[1741627385542,0.095,119.41,119.32,66.03273841]
[1741627385751,0.095,119.41,119.35,0.05626636]
[1741627386047,0.05915375,119.38,119.35,0.05626636]
[1741627386452,342.79273841,119.44,119.33,8.5808]
[1741627386751,0.05513818,119.38,119.35,0.06181959]
[1741627387154,57.34,119.45,119.33,66.03273841]
[1741627387465,5.712e-05,119.38,119.35,66.03273841]
[1741627387649,0.1517,119.49,119.38,0.05470097]
[1741627387852,66.03273841,119.48,119.38,61.64930097]
[1741627388055,66.03273841,119.46,119.38,4.2546]
[1741627388553,66.03273841,119.42,119.32,91.7688187]
[1741627388753,66.03273841,119.4,119.32,91.7688187]
[1741627388947,66.03273841,119.4,119.36,0.06218479]
[1741627389150,66.03273841,119.42,119.36,0.06218479]
[1741627389455,66.03273841,119.4,119.32,91.7688187]
[1741627389654,123.33273841,119.4,119.32,91.7688187]
[1741627390252,66.03273841,119.42,119.32,91.7688187]
[1741627390452,4.0034,119.43,119.33,57.3]
[1741627390655,66.03273841,119.42,119.33,65.6835]
[1741627390854,0.05345702,119.39,119.37,0.0584065]
[1741627391252,8.3806,119.38,119.37,0.0584065]
[1741627391458,0.05345702,119.39,119.31,95.9708187]
[1741627391654,8.3811,119.38,119.33,8.3838]
[1741627391959,66.17473841,119.42,119.31,95.9708187]
[1741627392258,66.03273841,119.4,119.31,95.9708187]
[1741627392660,0.06327873,119.37,119.34,0.05403644]
[1741627393266,8.3823,119.36,119.34,0.05403644]
[1741627393458,0.06327873,119.37,119.34,0.05403644]
[1741627393657,16.7416,119.52,119.36,66.03273841]
[1741627393859,66.03273841,119.45,119.35,65.6625]
[1741627394057,66.03273841,119.43,119.35,57.28]
[1741627394260,8.381,119.38,119.32,149.0488187]
[1741627394456,66.03273841,119.37,119.32,91.7688187]
[1741627394767,66.03273841,119.35,119.33,0.05676756]
[1741627394959,8.3834,119.34,119.33,0.05676756]
[1741627395160,66.03273841,119.35,119.33,0.05676756]
[1741627395563,0.04858479,119.36,119.32,91.7688187]
[1741627395960,8.43058479,119.36,119.31,91.7688187]
[1741627396154,0.04858479,119.36,119.31,91.7688187]
[1741627396556,0.04858479,119.36,119.32,0.05743742]
[1741627398367,1.9499,119.44,119.33,66.03273841]
[1741627398667,8.3773,119.43,119.37,8.3808]
[1741627398865,342.61273841,119.45,119.36,57.28]
[1741627399265,350.98863841,119.45,119.39,8.3798]
[1741627399466,0.05639175,119.42,119.39,0.05770776]
[1741627399869,0.05639175,119.42,119.4,8.3792]
[1741627400069,0.05639175,119.42,119.39,0.05770776]
[1741627400269,8.43439175,119.42,119.39,0.05770776]
[1741627400867,8.3785,119.41,119.39,0.05770776]
[1741627401364,8.3789,119.41,119.39,0.05770776]
[1741627401565,8.31988294,119.41,119.39,0.05770776]
[1741627401864,8.3785,119.41,119.39,0.05770776]
[1741627402064,0.05639175,119.42,119.39,0.05770776]
[1741627402265,66.08913016,119.42,119.39,7.76e-06]
[1741627402468,8.3813,119.37,119.36,118.92566898]
[1741627402670,131.67403841,119.37,119.36,118.92566898]
[1741627402866,123.29273841,119.37,119.35,92.01782588]
[1741627403070,66.03273841,119.39,119.35,92.01782588]
[1741627403268,57.26,119.4,119.35,92.01782588]
[1741627403467,66.03273841,119.39,119.35,92.01782588]
[1741627403662,66.0898621,119.39,119.36,4.11e-05]
[1741627403867,0.05712369,119.39,119.36,4.11e-05]
[1741627405174,8.3813,119.37,119.36,4.11e-05]
[1741627406578,0.05712369,119.39,119.36,4.11e-05]
[1741627407071,8.3813,119.37,119.36,4.11e-05]
[1741627408678,2.52,119.37,119.28,4.1931]
[1741627408871,276.54,119.36,119.28,12.5806]
[1741627409074,57.26,119.35,119.28,4.1931]
[1741627409273,8.3866,119.3,119.28,4.1931]
[1741627409472,57.26,119.35,119.28,4.1931]
[1741627409677,66.03273841,119.34,119.28,4.1931]
[1741627409872,8.3855,119.31,119.3,6.3e-05]
[1741627410072,74.41823841,119.31,119.3,6.3e-05]
[1741627410375,76.93823841,119.31,119.3,6.3e-05]
[1741627410876,74.41823841,119.31,119.3,6.3e-05]
[1741627411178,8.3855,119.31,119.3,6.3e-05]
[1741627411882,76.93823841,119.31,119.3,6.3e-05]
[1741627412179,8.3901,119.25,119.21,242.46543247]
[1741627412367,68.55273841,119.31,119.21,242.46543247]
[1741627412368,57.26,119.29,119.21,12.6587]
[1741627412572,66.03273841,119.29,119.21,12.6587]
[1741627412768,123.29273841,119.31,119.21,78.69143841]
[1741627412984,57.26,119.31,119.21,78.69143841]
[1741627413273,0.06004428,119.27,119.25,0.05514464]
[1741627413778,8.389,119.26,119.25,0.05514464]
[1741627414280,74.42173841,119.26,119.25,4.464e-05]
[1741627414475,131.68173841,119.26,119.25,4.464e-05]
[1741627414976,402.45273841,119.26,119.16,8.6621]
[1741627415183,66.03273841,119.22,119.16,8.6621]
[1741627415571,57.26,119.21,119.15,183.15643244]
[1741627415975,8.3952,119.18,119.15,183.15643244]
[1741627416180,0.06117894,119.19,119.17,0.05505549]
[1741627416577,8.3946,119.18,119.17,0.05505549]
[1741627416881,66.03273841,119.18,119.12,8.6621]
[1741627417184,8.3982,119.13,119.12,8.6621]
[1741627417479,66.03273841,119.2,119.12,8.6621]
[1741627417681,8.3944,119.19,119.12,8.6621]
[1741627417881,57.26,119.21,119.12,17.0607]
[1741627418077,0.06385939,119.17,119.14,0.05971285]
[1741627418274,8.3968,119.15,119.14,0.05971285]
[1741627418671,57.28,119.15,119.06,138.80691864]
[1741627418874,8.3999,119.11,119.06,147.03711864]
[1741627419083,66.03273841,119.14,119.06,147.03711864]
[1741627419782,66.03273841,119.12,119.06,142.96781864]
[1741627419980,0.05772709,119.11,119.06,142.96781864]
[1741627420186,0.05772709,119.11,119.08,0.05873669]
[1741627421083,66.03273841,119.17,119.08,0.05873669]
[1741627421283,400.09273841,119.19,119.08,66.0914751]
[1741627421482,400.09273841,119.19,119.08,66.03273841]
[1741627421675,66.03273841,119.17,119.09,4.0634]
[1741627422280,66.03273841,119.15,119.09,4.0634]
[1741627422586,0.06334363,119.14,119.12,0.05607917]
[1741627422781,66.03273841,119.17,119.12,0.05607917]
[1741627423088,8.3982,119.13,119.12,0.05607917]
[1741627423385,66.03273841,119.13,119.06,4.1609]
[1741627424180,8.4008,119.1,119.06,4.1609]
[1741627424378,0.06344505,119.11,119.08,0.06270802]
[1741627424683,8.46344505,119.11,119.08,0.06270802]
[1741627424884,0.06344505,119.11,119.08,0.06270802]
[1741627425381,123.33273841,119.17,119.08,0.06270802]
[1741627425682,123.33273841,119.17,119.07,57.3]
[1741627426280,66.03273841,119.17,119.07,57.3]
[1741627426478,110.00807902,119.21,119.08,66.03273841]
[1741627426479,342.81273841,119.19,119.08,66.03273841]
[1741627426679,0.05305767,119.13,119.11,0.05674657]
[1741627426885,342.81273841,119.19,119.08,66.03273841]
[1741627427084,342.81273841,119.19,119.11,8.3991]
[1741627427383,342.81273841,119.19,119.08,66.03273841]
[1741627427577,276.78,119.19,119.11,8.3991]
[1741627427784,8.395,119.18,119.12,4.1262]
[1741627427984,276.78,119.19,119.14,0.05553952]
[1741627427985,0.05354005,119.16,119.14,0.05553952]
[1741627428180,0.05354005,119.16,119.14,8.45243952]
[1741627428383,8.3933,119.2,119.14,0.05553952]
[1741627428587,66.03273841,119.23,119.14,0.05553952]
[1741627429089,400.47523841,119.25,119.14,66.03273841]
[1741627429287,400.31273841,119.25,119.14,66.03273841]
[1741627429886,0.0603278,119.21,119.18,0.06258801]
[1741627430084,8.3939,119.19,119.18,0.06258801]
[1741627430583,66.09306621,119.21,119.18,0.06258801]
[1741627430984,66.03273841,119.19,119.13,8.7059]
[1741627431185,66.03273841,119.17,119.08,57.28]
[1741627431384,66.03273841,119.17,119.09,8.5056]
[1741627432184,0.06185882,119.14,119.12,0.06018302]
[1741627432686,66.03273841,119.13,119.05,4.2571]
[1741627433077,123.31273841,119.15,119.07,8.402]
[1741627433282,66.03273841,119.17,119.05,4.2571]
[1741627433484,66.03273841,119.17,119.06,70.33973841]
[1741627433886,0.06281064,119.13,119.1,0.06203787]
[1741627434081,0.06281064,119.13,119.09,61.682]
[1741627434289,0.06281064,119.13,119.09,61.74377181]
[1741627435093,8.3996,119.12,119.09,61.74377181]
[1741627435393,0.06281064,119.13,119.09,4.46377181]
[1741627435989,66.09554905,119.13,119.09,0.06177181]
[1741627436196,66.03273841,119.11,119.01,8.7925]
[1741627436401,66.03273841,119.09,119.01,8.7925]
[1741627436591,8.4049,119.04,119.01,8.7925]
[1741627436896,66.03273841,119.09,119.01,8.7925]
[1741627437084,8.4044,119.05,119.01,8.7925]
[1741627437291,66.03273841,119.09,119.01,8.7925]
[1741627437486,0.05777965,119.04,119.02,0.05861364]
[1741627437692,57.28,119.08,119.02,0.05861364]
[1741627437890,0.0627806,119.04,119.02,0.05861364]
[1741627438697,8.4678806,119.04,119.02,0.05861364]
[1741627439194,0.0627806,119.04,119.02,0.05861364]
[1741627439499,343.07273841,119.11,119.02,0.05861364]
[1741627439699,277.04,119.11,119.03,57.26]
[1741627440096,66.03273841,119.1,119.01,8.7925]
[1741627440297,66.03273841,119.08,119.01,8.7925]
[1741627440597,0.05872984,119.06,119.03,0.05527688]
[1741627441098,8.4045,119.04,119.03,0.05527688]
[1741627441502,0.05872984,119.06,119.03,0.05527688]
[1741627441906,0.05872984,119.06,119.03,8.46007688]
[1741627442197,0.05872984,119.06,119.03,0.05527688]
[1741627442406,123.29273841,119.05,119.03,7.688e-05]
[1741627442699,8.4045,119.04,119.03,7.688e-05]
[1741627443200,65.6845,119.04,119.03,7.688e-05]
[1741627443404,8.4096,118.97,118.9,66.03273841]
[1741627443700,57.28,118.99,118.91,4.3932]
[1741627443895,8.4117,118.94,118.91,4.3932]
[1741627444101,123.31273841,119.0,118.91,4.3932]
[1741627444302,108.05407902,119.04,118.92,66.03273841]
[1741627444490,8.46276199,118.99,118.97,0.05429793]
[1741627444696,0.05466199,118.99,118.97,0.05429793]
[1741627444896,66.0874004,118.99,118.97,0.05429793]
[1741627445096,8.412,118.94,118.91,4.3932]
[1741627445303,66.03273841,118.97,118.91,4.3932]
[1741627445604,8.4099,118.97,118.91,4.3932]
[1741627445804,57.26,118.98,118.91,4.3932]
[1741627446100,8.4102,118.96,118.91,4.3932]
[1741627446302,0.05790445,118.96,118.93,0.06318237]
[1741627446703,66.03273841,119.01,118.93,8.47488237]
[1741627446901,66.03273841,119.01,118.91,61.6732]
[1741627447109,66.03273841,118.99,118.91,4.3932]
[1741627447303,8.4099,118.97,118.91,12.8063]
[1741627447503,57.28,119.02,118.91,4.3932]
[1741627447697,66.20073841,119.05,118.92,123.31273841]
[1741627447896,8.4071,119.01,118.95,0.06180641]
[1741627448102,66.03273841,119.05,118.95,4.1719]
[1741627448399,66.03273841,119.14,119.04,66.03273841]
[1741627448607,66.03273841,119.12,119.05,61.4319]
[1741627448811,66.03273841,119.12,119.05,4.1719]
[1741627448997,66.03273841,119.1,119.01,57.28]
[1741627449203,66.03273841,119.08,118.99,61.4519]
[1741627449805,66.03273841,119.06,118.99,4.1719]
[1741627450313,0.05911021,119.04,119.01,0.05421569]
[1741627450708,66.09184862,119.04,119.01,0.05421569]
[1741627452007,0.05911021,119.04,119.01,0.05421569]
[1741627452208,8.4054,119.03,119.01,0.05421569]
[1741627452807,8.4059,119.02,119.01,0.05421569]
[1741627453718,8.46391021,119.04,119.01,0.05421569]
[1741627454110,0.05911021,119.04,119.01,0.05421569]
[1741627455716,66.09184862,119.04,119.01,0.05421569]
[1741627456217,0.05911021,119.04,119.01,0.05421569]
[1741627456516,8.46421021,119.04,119.01,0.05421569]
[1741627456716,0.05911021,119.04,119.01,0.05421569]
[1741627458529,8.46361021,119.04,119.01,0.05421569]
[1741627458731,0.05911021,119.04,119.02,8.4055]
[1741627458933,277.3,119.1,119.01,57.29421569]
[1741627459131,44.90779342,119.13,119.04,66.03273841]
[1741627459327,44.90779342,119.13,119.06,66.03273841]
[1741627459526,44.90779342,119.13,119.07,57.24]
[1741627459726,44.90779342,119.13,119.12,8.3989]
[1741627459936,13.21079529,119.14,119.12,123.27273841]
[1741627460134,0.06234101,119.14,119.12,125.79273841]
[1741627460333,0.06234101,119.14,119.12,123.27273841]
[1741627461033,0.06234101,119.14,119.13,8.3982]
[1741627461241,8.3941,119.19,119.12,125.79273841]
[1741627461432,8.3941,119.19,119.12,123.27273841]
[1741627461660,11.2645649,119.22,119.12,123.27273841]
[1741627462230,66.03273841,119.2,119.12,57.24]
[1741627462427,66.09425221,119.18,119.16,0.05366519]
[1741627462634,66.09425221,119.18,119.09,8.4005]
[1741627462836,8.397,119.15,119.07,57.2]
[1741627463035,4.0894,119.17,119.07,57.2]
[1741627463243,4.0131,119.16,119.11,8.3996]
[1741627463540,4.0131,119.16,119.08,66.03273841]
[1741627463741,0.06073435,119.15,119.12,0.06239556]
[1741627464241,0.06073435,119.15,119.14,8.3975]
[1741627464638,0.06073435,119.15,119.12,123.27513397]
[1741627464849,0.06073435,119.15,119.12,57.24239556]
[1741627465051,8.3976,119.14,119.12,0.06239556]
[1741627465248,0.06073435,119.15,119.12,0.06239556]
[1741627465461,66.03273841,119.13,119.03,123.21273841]
[1741627465632,8.401,119.09,119.02,95.71767539]
[1741627465834,66.03273841,119.13,119.06,8.4029]
[1741627466031,4.3628,119.14,119.03,123.21273841]
[1741627466235,70.39553841,119.14,119.04,91.32997539]
[1741627466537,0.05780381,119.1,119.08,0.05873844]
[1741627466923,0.05780381,119.1,119.09,8.401]
[1741627468629,0.05780381,119.1,119.08,57.23873844]
[1741627468834,0.05780381,119.1,119.08,0.05873844]
[1741627469237,0.05780381,119.1,119.03,8.4049]
[1741627469534,66.03273841,119.1,119.03,57.16]
[1741627469931,70.18823841,119.1,119.03,57.16]
[1741627470432,0.0586844,119.08,119.05,0.06084295]
[1741627471032,8.4031,119.06,119.05,0.06084295]
[1741627471233,0.0586844,119.08,119.03,57.16]
[1741627471436,66.09142281,119.08,119.0,20.45709557]
[1741627471630,66.03273841,119.06,119.0,20.45709557]
[1741627471835,66.03273841,119.06,118.98,65.5487]
[1741627472136,66.03273841,119.06,118.96,8.4503]
[1741627472333,66.03273841,119.04,118.96,4.2665]
[1741627472537,8.4071,119.01,119.0,0.05600787]
[1741627472835,0.05692433,119.02,119.0,0.05600787]
[1741627473736,8.46332433,119.02,119.0,0.05600787]
[1741627473937,0.05692433,119.02,119.0,0.05600787]
[1741627474836,8.46312433,119.02,119.0,0.05600787]
[1741627475137,0.05692433,119.02,119.0,0.05600787]
[1741627475338,8.46342433,119.02,119.0,0.05600787]
[1741627475727,0.05692433,119.02,119.0,0.05600787]
[1741627476532,8.4066,119.01,119.0,0.05600787]
[1741627477140,0.05692433,119.02,119.0,0.05600787]
[1741627477834,8.4066,119.01,119.0,0.05600787]
[1741627478041,0.05692433,119.02,118.93,61.3038]
[1741627478235,123.15273841,119.04,118.93,61.3038]
[1741627478435,123.15273841,119.04,118.94,66.03273841]
[1741627479129,0.06289063,119.0,118.98,0.0621228]
[1741627479841,0.06289063,119.0,118.98,8.4703228]
[1741627480039,0.06289063,119.0,118.98,57.1821228]
[1741627480540,8.4081,118.99,118.98,0.0621228]
[1741627481241,0.06289063,119.0,118.92,61.3865]
[1741627481443,4.0439,119.01,118.95,8.4105]
[1741627481643,4.0439,119.01,118.92,127.41923841]
[1741627482243,0.05515275,118.98,118.95,0.06231606]
[1741627482633,8.46415275,118.98,118.95,0.06231606]
[1741627483141,0.05515275,118.98,118.96,8.41]
[1741627483341,0.05515275,118.98,118.95,0.06231606]
[1741627483642,0.05515275,118.98,118.95,8.47281606]
[1741627483842,0.05515275,118.98,118.95,0.06231606]
[1741627484241,8.4098,118.97,118.95,0.06231606]
[1741627484446,0.05515275,118.98,118.95,0.06231606]
[1741627485343,8.4102,118.96,118.95,0.06231606]
[1741627485846,0.05515275,118.98,118.91,8.4134]
[1741627485847,8.4119,118.94,118.91,8.4134]
[1741627486348,70.08023841,119.0,118.91,8.4134]
[1741627486548,70.08023841,119.0,118.89,57.1]
[1741627487137,0.06010753,118.96,118.93,0.05422246]
[1741627488245,66.09284594,118.96,118.89,8.4146]
[1741627488449,8.413,118.93,118.89,8.4146]
[1741627488738,4.4256,118.95,118.86,8.417]
[1741627488739,66.03273841,118.94,118.86,8.417]
[1741627489143,8.4148,118.9,118.84,4.3945]
[1741627489343,8.4148,118.9,118.85,8.4175]
[1741627489550,8.4148,118.9,118.89,0.0640001]
[1741627489741,8.4147,118.9,118.85,8.4179]
[1741627489943,8.4147,118.9,118.88,0.05830919]
[1741627490449,0.05846965,118.91,118.88,0.05830919]
[1741627490643,0.05846965,118.91,118.88,57.13830919]
[1741627490847,0.05846965,118.91,118.9,8.4144]
[1741627491141,0.05846965,118.91,118.88,123.1710476]
[1741627491348,0.05846965,118.91,118.88,65.55380919]
[1741627491644,0.05846965,118.91,118.88,57.13830919]
[1741627491848,0.05846965,118.91,118.88,123.1710476]
[1741627492049,6.965e-05,118.91,118.88,57.13830919]
[1741627492248,6.965e-05,118.91,118.88,123.1710476]
[1741627492544,8.6689,119.01,118.9,66.03273841]
[1741627492753,8.6689,119.01,118.92,66.03273841]
[1741627492943,17.076,119.01,118.96,8.4096]
[1741627493142,8.6689,119.01,118.93,57.08]
[1741627493645,0.05531666,118.98,118.96,0.06417032]
[1741627493847,0.05531666,118.98,118.91,4.2978]
[1741627494952,0.05531666,118.98,118.9,57.08]
[1741627495153,66.03273841,118.97,118.93,0.06405608]
[1741627495453,8.4116,118.94,118.88,8.4155]
[1741627495752,0.06443362,118.95,118.87,57.06]
[1741627495753,66.03273841,118.95,118.87,57.06]